[Event "41st Amateur D7"]
[Site "ChessGUI4"]
[Date "2013.07.03"]
[Round "3.1"]
[White "Butcher 1.64 64-bit"]
[Black "Carballo 0.8"]
[Result "1/2-1/2"]
[BlackElo "2273"]
[ECO "C63"]
[EventDate "2013.??.??"]
[TimeControl "40/1500:40/1500:40/1500"]
[WhiteElo "2355"]

{ i5 Quad } 1.e4 { [%eval 0,1] [%emt 0:00:00] } 1...e5
{ [%eval 0,1] [%emt 0:00:00] } 2.Nf3 { [%eval 0,1] [%emt 0:00:00] } 2...Nc6
{ [%eval 0,1] [%emt 0:00:00] } 3.Bb5 { [%eval 0,1] [%emt 0:00:00] } 3...f5
{ [%eval 0,1] [%emt 0:00:00] } 4.d3 { [%eval 0,1] [%emt 0:00:00] } 4...fxe4
{ [%eval 0,1] [%emt 0:00:00] } 5.dxe4 { [%eval 0,1] [%emt 0: 00:00] } 5...Nf6
{ [%eval 0,1] [%emt 0:00:00] } 6.O-O { [%eval 0,1] [%emt 0:00:00] } 6...Bc5
{ [%eval 0,1] [%emt 0:00:00] } 7.Bxc6 { [%eval 0,1] [%emt 0:00:00] } 7...bxc6
{ [%eval 0,1] [%emt 0:00:00] } 8.Nxe5 { [%eval 0,1] [%emt 0:00:00] } 8...O-O
{ [%eval 0, 1] [%emt 0:00:00] } 9.Bg5 { [%eval 98,11] [%emt 0:01:03] }
9...Qe8 { [%eval -49,13] [%emt 0:00:37] (Qe8) } 10.Bxf6
{ [%eval 89,12] [%emt 0:00:54] (Bxf6) } 10...Rxf6
{ [%eval -48,14] [%emt 0:00:36] (Rxf6) } 11.Nd3
{ [%eval 80,12] [%emt 0:00:59] (Nd3) } 11...Bb6
{ [%eval -50,13] [%emt 0:00:35] (Bb6) } 12.e5
{ [%eval 55,12] [%emt 0: 00:58] (Nd2) } 12...Rh6
{ [%eval -46,13] [%emt 0:00:34] (Rf8) } 13.Nd2
{ [%eval 94,11] [%emt 0:01:04] (Nd2) } 13...Qg6
{ [%eval -38,12] [%emt 0:00:33] (Ba6) } 14.a4
{ [%eval 80,11] [%emt 0:01:04] (Re1) } 14...a5
{ [%eval -40,13] [%emt 0:00:32] (a5) } 15.Nc4
{ [%eval 79,11] [%emt 0:00:59] (Nf3) } 15...Bd4
{ [%eval -45,12] [%emt 0:00:32] (Rh4) } 16.c3
{ [%eval 102,11] [%emt 0:00:53] (c3) } 16...Ba7
{ [%eval -36,14] [%emt 0: 00:31] (Ba6) } 17.Na3
{ [%eval 56,11] [%emt 0:01:01] (Nxa5) } 17...Ba6
{ [%eval 7,13] [%emt 0:00:30] (Qf7) } 18.Qb3+
{ [%eval 60,11] [%emt 0:01:00] (c4) } 18...Kh8
{ [%eval -11,13] [%emt 0:00:29] (Kh8) } 19.c4
{ [%eval 36,12] [%emt 0:00:58] (c4) } 19...Rh4
{ [%eval 10,11] [%emt 0:00:29] (Qh5) } 20.Rad1
{ [%eval 65,10] [%emt 0:00:57] (Kh1) } 20...Qg4
{ [%eval -4,12] [%emt 0:00:28] (Qe6) } 21.Qc3
{ [%eval 47,11] [%emt 0: 00:48] (Rc1) } 21...Bxc4
{ [%eval -20,13] [%emt 0:00:27] (Bxc4) } 22.Nxc4
{ [%eval 29, 11] [%emt 0:00:48] (Nxc4) } 22...Qxc4
{ [%eval -50,15] [%emt 0:00:26] (Qxc4) } 23.Qxc4
{ [%eval 28,12] [%emt 0:00:47] (Qxc4) } 23...Rxc4
{ [%eval -20,16] [%emt 0:00:26] (Rxc4) } 24.Ne1
{ [%eval 28,14] [%emt 0:00:46] (Ne1) } 24...Rd4
{ [%eval -15,16] [%emt 0:00:25] (Rd4) } 25.Nf3
{ [%eval 27,14] [%emt 0:00:46] (Nc2) } 25...Rd5
{ [%eval -11, 16] [%emt 0:00:24] (Rd5) } 26.Rde1
{ [%eval 25,13] [%emt 0:00:41] (Rc1) } 26...Re8
{ [%eval 25,13] [%emt 0:00:24] (Re8) } 27.Re4
{ [%eval 26,13] [%emt 0:00:45] (b3) } 27...h5
{ [%eval 31,12] [%emt 0:00:23] (Kg8) } 28.Rfe1
{ [%eval 40,12] [%emt 0:00:41] (b4) } 28...Rb8
{ [%eval 28,14] [%emt 0:00:23] (Bc5) } 29.Rb1
{ [%eval 40,12] [%emt 0: 00:43] (Rb1) } 29...Re8
{ [%eval 20,14] [%emt 0:00:22] (Kg8) } 30.Rbe1
{ [%eval 42,13] [%emt 0:01:13] (g3) } 30...Rb8
{ [%eval 13,14] [%emt 0:00:21] (Kg8) } 31.Rb1
{ [%eval 40,12] [%emt 0:00:37] (Rb1) } 31...c5
{ [%eval 9,13] [%emt 0:00:21] (Kg8) } 32.e6
{ [%eval 40,13] [%emt 0:00:36] (h3) } 32...dxe6
{ [%eval 16,14] [%emt 0:00:20] (dxe6) } 33.Rxe6
{ [%eval 10,13] [%emt 0:00:30] (Rxe6) } 33...c4
{ [%eval 44,14] [%emt 0:00:20] (c4) } 34.Ree1
{ [%eval -15,11] [%emt 0:00:29] (Re2) } 34...Bd4
{ [%eval 44,14] [%emt 0:00:19] (g5) } 35.Nxd4
{ [%eval -14,12] [%emt 0:00:22] (Nxd4) } 35...Rxd4
{ [%eval 46, 14] [%emt 0:00:19] (Rxd4) } 36.Kf1
{ [%eval -16,12] [%emt 0:00:25] (g3) } 36...Kg8
{ [%eval 68,13] [%emt 0:00:18] (g6) } 37.Re3
{ [%eval -30,11] [%emt 0:00:21] (Re3) } 37...Rb4
{ [%eval 68,13] [%emt 0:00:18] (Rb4) } 38.h3
{ [%eval -49,11] [%emt 0:00: 21] (f3) } 38...Rd2
{ [%eval 80,12] [%emt 0:00:17] (Rxa4) } 39.Re2
{ [%eval -20,12] [%emt 0:00:19] (Re8) } 39...Rxe2
{ [%eval 45,15] [%emt 0:00:17] (Rxe2) } 40.Kxe2
{ [%eval -5,13] [%emt 0:00:17] (Kxe2) } 40...Rxa4
{ [%eval 52,15] [%emt 0:00:17] (Rxa4) } 41.Kd2
{ [%eval -15,14] [%emt 0:00:49] (Kd2) } 41...Rb4
{ [%eval 38,17] [%emt 0:00:54] (Rb4) } 42.Kc3
{ [%eval -15,13] [%emt 0:00:49] (Kc3) } 42...Kf7
{ [%eval 25,16] [%emt 0:00:52] (Rb3) } 43.Rd1
{ [%eval 0,13] [%emt 0:00:48] (Ra1) } 43...Rb3+
{ [%eval 62,16] [%emt 0:00:51] (Ke6) } 44.Kc2
{ [%eval 0,14] [%emt 0:00:48] (Kc2) } 44...Ke6
{ [%eval 52,17] [%emt 0:00:50] (Ke6) } 45.Rd4
{ [%eval 0,13] [%emt 0:00:48] (Re1) } 45...Rb4
{ [%eval 32,18] [%emt 0:00:48] (Rb4) } 46.Re4+
{ [%eval 0,13] [%emt 0:00:46] (Re4) } 46...Kd6
{ [%eval 22,18] [%emt 0:00:47] (Kd6) } 47.Rd4+
{ [%eval 0,13] [%emt 0:00: 52] (Rd4) } 47...Ke6
{ [%eval 17,18] [%emt 0:00:46] (Ke6) } 48.Re4+
{ [%eval 0,13] [%emt 0:00:45] (Kc3) } 48...Kd6
{ [%eval 2,18] [%emt 0:00:45] (Kd6) } 49.Rd4+
{ [%eval 0,13] [%emt 0:00:51] (Rd4) } 49...Kc6
{ [%eval 1,18] [%emt 0:00:44] (Kc6) } 50.Kc3
{ [%eval 0,13] [%emt 0:00:46] (Kc3) } 50...Rb3+
{ [%eval 0,16] [%emt 0:00:43] (Rb3) } 51.Kc2
{ [%eval 0,14] [%emt 0:00:50] (Kc2) } 51...Rb4
{ [%eval 4,17] [%emt 0:00:42] (Rb4) } 52.f3
{ [%eval 0,13] [%emt 0:00:45] (Kc3) } 52...g6
{ [%eval 32,15] [%emt 0:00: 40] (g6) } 53.Rf4
{ [%eval 0,14] [%emt 0:00:49] (g4) } 53...Kb7
{ [%eval 11,16] [%emt 0:00:39] (Kb7) } 54.Re4
{ [%eval 1,13] [%emt 0:00:42] (Re4) } 54...Rb5
{ [%eval 6,17] [%emt 0:00:38] (a4) } 55.Rxc4
{ [%eval 42,13] [%emt 0:00:41] (Rxc4) } 55...Re5
{ [%eval 3,16] [%emt 0:00:37] (c6) } 56.Kd3
{ [%eval 43,13] [%emt 0:00:41] (Kd3) } 56...Rb5
{ [%eval -2,15] [%emt 0:00:37] (Rd5) } 57.Rc2
{ [%eval 48,13] [%emt 0:00:40] (Kc3) } 57...c6
{ [%eval 1,15] [%emt 0:00:36] (Rb4) } 58.Rd2
{ [%eval 41,12] [%emt 0: 00:38] (Ke4) } 58...Rb3+
{ [%eval -5,14] [%emt 0:00:35] (Kb6) } 59.Kd4
{ [%eval 52,13] [%emt 0:00:39] (Kc4) } 59...Rb5
{ [%eval -1,17] [%emt 0:00:34] (Rb5) } 60.h4
{ [%eval 49,13] [%emt 0:00:39] (Ke4) } 60...Rb4+
{ [%eval 15,18] [%emt 0:00:33] (Kb6) } 61.Kc3
{ [%eval 45,15] [%emt 0:01:07] (Kc5) } 61...Rxh4
{ [%eval 12,18] [%emt 0:00:32] (Kc7) } 62.Rd7+
{ [%eval 63,14] [%emt 0:00:36] (Rd7) } 62...Kb6
{ [%eval 11,19] [%emt 0:00:31] (Kb6) } 63.Rg7
{ [%eval 61,14] [%emt 0:00:32] (Rg7) } 63...c5
{ [%eval 10,18] [%emt 0: 00:31] (Kc5) } 64.Rxg6+
{ [%eval 75,13] [%emt 0:00:35] (Rxg6) } 64...Kb5
{ [%eval 7,18] [%emt 0:00:30] (Kb5) } 65.Rd6
{ [%eval 57,13] [%emt 0:00:35] (Rg5) } 65...Rc4+
{ [%eval 30,17] [%emt 0:00:29] (Rh1) } 66.Kd3
{ [%eval 59,13] [%emt 0:00:33] (Kd2) } 66...Rb4
{ [%eval 22,16] [%emt 0:00:28] (Rc1) } 67.Rd8
{ [%eval 66,13] [%emt 0:00: 32] (Kc3) } 67...Rb3+
{ [%eval 15,14] [%emt 0:00:28] (a4) } 68.Kc2
{ [%eval 78,13] [%emt 0:00:31] (Ke4) } 68...Re3
{ [%eval 26,14] [%emt 0:00:27] (a4) } 69.Kd2
{ [%eval 88,12] [%emt 0:00:30] (f4) } 69...Rb3
{ [%eval 15,16] [%emt 0:00:26] (Re6) } 70.Kc2
{ [%eval 77,13] [%emt 0:00:28] (Kc2) } 70...Re3
{ [%eval 16,15] [%emt 0:00:25] (a4) } 71.Kd2
{ [%eval 84,12] [%emt 0:00:23] (Rb8) } 71...Re7
{ [%eval 10,16] [%emt 0:00:25] (Rb3) } 72.Rb8+
{ [%eval 80,12] [%emt 0:00:26] (Rb8) } 72...Kc6
{ [%eval 8,15] [%emt 0: 00:24] (Kc6) } 73.Rg8
{ [%eval 84,12] [%emt 0:00:25] (Rg8) } 73...Rf7
{ [%eval 12,15] [%emt 0:00:24] (Rf7) } 74.Rg6+
{ [%eval 72,12] [%emt 0:00:24] (Kc3) } 74...Kb5
{ [%eval 17,17] [%emt 0:00:23] (Kb5) } 75.Rg8
{ [%eval 75,11] [%emt 0:00:22] (Rg5) } 75...Kc4
{ [%eval 23,14] [%emt 0:00:22] (Kc4) } 76.Kc2
{ [%eval 70,11] [%emt 0:00: 21] (Kc2) } 76...Kd4
{ [%eval 14,14] [%emt 0:00:22] (Re7) } 77.Kd2
{ [%eval 68,11] [%emt 0:00:20] (b3) } 77...Rd7
{ [%eval 19,14] [%emt 0:00:21] (Rd7) } 78.Rg5
{ [%eval 60,12] [%emt 0:00:19] (b3) } 78...Rh7
{ [%eval 27,15] [%emt 0:00:21] (Rb7) } 79.Rg8
{ [%eval 73,11] [%emt 0:00:18] (b3) } 79...Rb7
{ [%eval 32,14] [%emt 0:00:20] (h4) } 80.Rd8+
{ [%eval 62,13] [%emt 0:00:16] (Kc2) } 80...Kc4
{ [%eval 22,16] [%emt 0:00:20] (Kc4) } 81.Kc2
{ [%eval 12,15] [%emt 0:01:13] (Kc2) } 81...Rg7
{ [%eval 25,17] [%emt 0: 00:57] (Rg7) } 82.Rd2
{ [%eval 1,15] [%emt 0:01:24] (Rd2) } 82...Rf7
{ [%eval 24,17] [%emt 0:00:55] (a4) } 83.Re2
{ [%eval 46,13] [%emt 0:00:47] (b3) } 1/2-1/2

[Event "41st Amateur D7"]
[Site "ChessGUI4"]
[Date "2013.07.04"]
[Round "3.2"]
[White "Tigran 2.3 64-bit"]
[Black "Gibbon 2.57a 64-bit"]
[Result "1/2-1/2"]
[BlackElo "2251"]
[ECO "D45"]
[EventDate "2013.??.??"]
[TimeControl "40/1500:40/1500:40/1500"]
[WhiteElo "2289"]

{ i5 Quad } 1.d4 { [%eval 0,1] [%emt 0:00:00] } 1...d5
{ [%eval 0,1] [%emt 0:00:00] } 2.c4 { [%eval 0,1] [%emt 0:00:00] } 2...c6
{ [%eval 0,1] [%emt 0:00:00] } 3.Nc3 { [%eval 0,1] [%emt 0:00:00] } 3...Nf6
{ [%eval 0,1] [%emt 0:00:00] } 4.Nf3 { [%eval 0, 1] [%emt 0:00:00] } 4...e6
{ [%eval 0,1] [%emt 0:00:00] } 5.e3 { [%eval 0,1] [%emt 0: 00:00] } 5...a6
{ [%eval 0,1] [%emt 0:00:00] } 6.b3 { [%eval 0,1] [%emt 0:00:00] } 6...Bb4
{ [%eval 0,1] [%emt 0:00:00] } 7.Bd2 { [%eval 0,1] [%emt 0:00:00] } 7...Nbd7
{ [%eval 0,1] [%emt 0:00:00] } 8.Bd3 { [%eval 0,1] [%emt 0:00:00] } 8...O-O
{ [%eval 0,1] [%emt 0:00:00] } 9.O-O { [%eval 57,13] [%emt 0:00:42] } 9...Qe7
{ [%eval -28,13] [%emt 0:01:49] (Qe7) } 10.cxd5
{ [%eval 54,12] [%emt 0:00:42] (Qc2) } 10...exd5
{ [%eval -10,14] [%emt 0:01:24] (exd5) } 11.Qc2
{ [%eval 53,13] [%emt 0:00:42] (Na4) } 11...Re8
{ [%eval -5,12] [%emt 0:00:27] (Re8) } 12.Rfe1
{ [%eval 44,13] [%emt 0:00:42] (Na4) } 12...Qd8
{ [%eval 7,12] [%emt 0:00:34] (Bxc3) } 13.a3
{ [%eval 43,12] [%emt 0:00:43] (a3) } 13...Bd6
{ [%eval -1,12] [%emt 0:00:23] (Bxc3) } 14.e4
{ [%eval 56,13] [%emt 0:00:33] (Na4) } 14...dxe4
{ [%eval 17,12] [%emt 0:00:46] (dxe4) } 15.Nxe4
{ [%eval 63,14] [%emt 0:00:39] (Bxe4) } 15...Nxe4
{ [%eval 20,13] [%emt 0:00:54] (Nxe4) } 16.Bxe4
{ [%eval 59,14] [%emt 0:00:43] (Bxe4) } 16...Nf8
{ [%eval 25,13] [%emt 0:01:14] (Nf6) } 17.Bd3
{ [%eval 59,12] [%emt 0:00:42] (Bd3) } 17...Rxe1+
{ [%eval 18,12] [%emt 0:00:30] (Rxe1) } 18.Rxe1
{ [%eval 55,13] [%emt 0:00:44] (Rxe1) } 18...Be6
{ [%eval 26,12] [%emt 0:00:24] (Be6) } 19.a4
{ [%eval 48,12] [%emt 0: 00:44] (b4) } 19...Bd5
{ [%eval 29,11] [%emt 0:00:28] (Qc7) } 20.Be4
{ [%eval 38,12] [%emt 0:00:44] (Ng5) } 20...Bxe4
{ [%eval 42,13] [%emt 0:00:28] (Bxe4) } 21.Qxe4
{ [%eval 28,13] [%emt 0:00:45] (Qxe4) } 21...Nd7
{ [%eval 25,13] [%emt 0:00:37] (Ne6) } 22.Bg5
{ [%eval 54,12] [%emt 0:00:45] (b4) } 22...Qa5
{ [%eval 48,12] [%emt 0:00:11] (Qb6) } 23.h4
{ [%eval 33,12] [%emt 0:00:45] (Kh1) } 23...Rc8
{ [%eval 62,12] [%emt 0: 00:15] (Nf8) } 24.h5
{ [%eval 24,12] [%emt 0:00:45] (g3) } 24...h6
{ [%eval 63,12] [%emt 0:00:12] (h6) } 25.Bxh6
{ [%eval 23,14] [%emt 0:00:38] (Bxh6) } 25...Qxh5
{ [%eval 54,14] [%emt 0:00:22] (Nf6) } 26.Bg5
{ [%eval 51,13] [%emt 0:00:39] (Bg5) } 26...Nb6
{ [%eval 53,13] [%emt 0:00:11] (Rf8) } 27.a5
{ [%eval 28,14] [%emt 0:00:47] (Bf4) } 27...Nd5
{ [%eval 38,15] [%emt 0:00:21] (Nd5) } 28.Qf5
{ [%eval 13,14] [%emt 0: 00:44] (Qf5) } 28...Rf8
{ [%eval 51,14] [%emt 0:00:14] (Rb8) } 29.Qd7
{ [%eval 22,14] [%emt 0:00:48] (Qd7) } 29...Bb4
{ [%eval 49,14] [%emt 0:00:15] (Bb4) } 30.Re4
{ [%eval 20,13] [%emt 0:00:48] (Bd2) } 30...f5
{ [%eval 59,13] [%emt 0:00:13] (f5) } 31.Re5
{ [%eval 10,15] [%emt 0:00:49] (Rh4) } 31...Qf7
{ [%eval 73,14] [%emt 0:00:12] (Qf7) } 32.Qxf7+
{ [%eval 5,16] [%emt 0:00:40] (Qxf7) } 32...Rxf7
{ [%eval 66,15] [%emt 0:00:06] (Rxf7) } 33.Bd2
{ [%eval 0,17] [%emt 0:00:50] (Bd2) } 33...Bd6
{ [%eval 64,15] [%emt 0:00:12] (Bxd2) } 34.Re6
{ [%eval 5,17] [%emt 0:00:52] (Re6) } 34...Be7
{ [%eval 58,15] [%emt 0:00:23] (Rf6) } 35.Re1
{ [%eval 5,15] [%emt 0:00:52] (Re1) } 35...Rf8
{ [%eval 66,14] [%emt 0:00:12] (Rf8) } 36.g3
{ [%eval -3,15] [%emt 0: 00:53] (g3) } 36...Ba3
{ [%eval 59,13] [%emt 0:00:13] (g6) } 37.Re6
{ [%eval 5,15] [%emt 0:00:55] (Ng5) } 37...Nc7
{ [%eval 65,14] [%emt 0:00:20] (Be7) } 38.Re2
{ [%eval 9,15] [%emt 0:00:57] (Re5) } 38...Rd8
{ [%eval 76,14] [%emt 0:00:12] (Nd5) } 39.Kg2
{ [%eval 2,16] [%emt 0:00:59] (Kf1) } 39...Nb5
{ [%eval 84,15] [%emt 0:00:24] (Nb5) } 40.Bg5
{ [%eval 0,16] [%emt 0:01:05] (Re3) } 40...Rd7
{ [%eval 71,15] [%emt 0:00:28] (Rd7) } 41.Re8+
{ [%eval 13,15] [%emt 0:00:33] (Re8) } 41...Kh7
{ [%eval 63,16] [%emt 0:00:35] (Kh7) } 42.Be3
{ [%eval 11,15] [%emt 0:00:34] (Be3) } 42...Nc7
{ [%eval 64,16] [%emt 0:02:02] (Be7) } 43.Ng5+
{ [%eval 19,14] [%emt 0:00:34] (Re5) } 43...Kg6
{ [%eval 60,17] [%emt 0:00:45] (Kg6) } 44.Rb8
{ [%eval 14,15] [%emt 0:00:34] (Rb8) } 44...Nd5
{ [%eval 59,17] [%emt 0:00:53] (Nd5) } 45.Bd2
{ [%eval 16,15] [%emt 0:00: 27] (Nf3) } 45...Bd6
{ [%eval 93,13] [%emt 0:00:25] (Bd6) } 46.Rh8
{ [%eval 8,15] [%emt 0:00:34] (Ra8) } 46...Kf6
{ [%eval 79,15] [%emt 0:00:37] (f4) } 47.Nf3
{ [%eval 18,14] [%emt 0:00:34] (Nh7) } 47...f4
{ [%eval 69,15] [%emt 0:02:10] (f4) } 48.Re8
{ [%eval 11,13] [%emt 0:00:35] (g4) } 48...fxg3
{ [%eval 112,14] [%emt 0:00:24] (fxg3) } 49.fxg3
{ [%eval 10,15] [%emt 0:00:28] (fxg3) } 49...Nc7
{ [%eval 106,14] [%emt 0:00: 28] (Kf7) } 50.Re2
{ [%eval 41,13] [%emt 0:00:35] (Re1) } 50...Nb5
{ [%eval 110,15] [%emt 0:01:15] (Nd5) } 51.Re4
{ [%eval 27,12] [%emt 0:00:35] (b4) } 51...Kg6
{ [%eval 123,14] [%emt 0:00:34] (Kg6) } 52.Rh4
{ [%eval 11,12] [%emt 0:00:35] (Bg5) } 52...Re7
{ [%eval 129,14] [%emt 0:00:44] (Re7) } 53.Kf2
{ [%eval 3,13] [%emt 0:00:30] (Bf4) } 53...Kf5
{ [%eval 140,14] [%emt 0:00:27] (Re8) } 54.Bf4
{ [%eval -2,12] [%emt 0:00:35] (Rh7) } 54...Bc7
{ [%eval 113,14] [%emt 0:00:31] (Bb4) } 55.Bxc7
{ [%eval 26, 13] [%emt 0:00:29] (Bxc7) } 55...Nxc7
{ [%eval 116,15] [%emt 0:00:10] (Nxc7) } 56.Rh5+
{ [%eval 14,13] [%emt 0:00:36] (Rh5) } 56...Kf6
{ [%eval 89,17] [%emt 0:01:22] (Kf6) } 57.Rh8
{ [%eval 6,14] [%emt 0:00:36] (g4) } 57...Nb5
{ [%eval 108,15] [%emt 0:00:19] (Re8) } 58.Rd8
{ [%eval 9,13] [%emt 0:00:36] (g4) } 58...Nc3
{ [%eval 105,15] [%emt 0: 00:23] (Re4) } 59.Ne5
{ [%eval 12,13] [%emt 0:00:30] (Rf8) } 59...Ne4+
{ [%eval 124,16] [%emt 0:00:43] (Ne4) } 60.Kg2
{ [%eval 11,14] [%emt 0:00:37] (Kg2) } 60...Nd2
{ [%eval 115,16] [%emt 0:00:34] (g5) } 61.Rf8+
{ [%eval 0,13] [%emt 0:00:37] (b4) } 61...Ke6
{ [%eval 126,17] [%emt 0:00:21] (Ke6) } 62.b4
{ [%eval 0,15] [%emt 0:00:37] (b4) } 62...Kd5
{ [%eval 113,16] [%emt 0:00:20] (Kd5) } 63.Rd8+
{ [%eval 0,15] [%emt 0: 00:34] (Rd8) } 63...Ke4
{ [%eval 118,17] [%emt 0:00:29] (Ke4) } 64.Ng6
{ [%eval 0,16] [%emt 0:00:38] (Ng4) } 64...Rf7
{ [%eval 119,17] [%emt 0:00:17] (Rf7) } 65.Ne5
{ [%eval 0,15] [%emt 0:00:38] (Ne5) } 65...Rc7
{ [%eval 99,18] [%emt 0:01:16] (Re7) } 66.Ng4
{ [%eval -12,15] [%emt 0:00:34] (Ng4) } 66...Nb3
{ [%eval 104,15] [%emt 0:00:19] (Kd3) } 67.Nf2+
{ [%eval -3,15] [%emt 0:00:39] (Nf2) } 67...Ke3
{ [%eval 92,17] [%emt 0:00:25] (Ke3) } 68.d5
{ [%eval -4,16] [%emt 0:00:39] (d5) } 68...cxd5
{ [%eval 97,16] [%emt 0:00:27] (cxd5) } 69.Rxd5
{ [%eval -4,15] [%emt 0:00:39] (Rxd5) } 69...Nd4
{ [%eval 95,16] [%emt 0:00:19] (Nd4) } 70.Re5+
{ [%eval -20,14] [%emt 0:00:40] (Re5) } 70...Kd2
{ [%eval 95,14] [%emt 0:00:00] (Kd2) } 71.Rd5
{ [%eval -33,15] [%emt 0:00:40] (Ne4) } 71...Kc3
{ [%eval 101,16] [%emt 0:00:25] (Rc4) } 72.Nd1+
{ [%eval -1, 15] [%emt 0:00:36] (Nd1) } 72...Kd3
{ [%eval 84,16] [%emt 0:00:18] (Kd3) } 73.Rd8
{ [%eval -14,15] [%emt 0:00:39] (Rd8) } 73...Re7
{ [%eval 87,16] [%emt 0:00:20] (Re7) } 74.Kf2
{ [%eval -12,15] [%emt 0:00:35] (Nb2) } 74...Rf7+
{ [%eval 87,16] [%emt 0:00: 24] (Re2) } 75.Kg2
{ [%eval 0,16] [%emt 0:00:36] (Kg2) } 75...Kc4
{ [%eval 80,17] [%emt 0:00:58] (Kc4) } 76.Ne3+
{ [%eval 0,16] [%emt 0:00:47] (Ne3) } 76...Kd3
{ [%eval 86,17] [%emt 0:00:28] (Kc3) } 77.Nd1
{ [%eval 0,19] [%emt 0:00:48] (Nd1) } 77...Rc7
{ [%eval 90,16] [%emt 0:00:21] (Kc4) } 78.Nb2+
{ [%eval -12,14] [%emt 0:00: 49] (Nb2) } 78...Kc2
{ [%eval 62,17] [%emt 0:00:16] (Ke4) } 79.Rxd4
{ [%eval -5,17] [%emt 0:00:43] (Rxd4) } 79...Kxb2
{ [%eval 50,16] [%emt 0:00:02] (Kxb2) } 80.Rg4
{ [%eval -9,16] [%emt 0:01:05] (b5) } 80...Kc3
{ [%eval 90,17] [%emt 0:00:15] (Kc3) } 81.Kf3
{ [%eval -9,17] [%emt 0:00:34] (Kf3) } 81...Rf7+
{ [%eval 80,18] [%emt 0:00:47] (Kd3) } 82.Ke2
{ [%eval -9,16] [%emt 0:00:34] (Kg2) } 82...Re7+
{ [%eval 80,19] [%emt 0:00:31] (Re7) } 83.Kf2
{ [%eval -8,17] [%emt 0:00:34] (Kf3) } 83...Rf7+
{ [%eval 80, 19] [%emt 0:00:44] (Kd3) } 84.Ke2
{ [%eval 0,22] [%emt 0:00:34] (Kg2) } 84...Re7+
{ [%eval 80,20] [%emt 0:00:46] (Re7) } 85.Kf2
{ [%eval 0,22] [%emt 0:00:28] (Kf3) } 85...Rd7
{ [%eval 79,19] [%emt 0:00:57] (Kd3) } 86.Kf3
{ [%eval -9,17] [%emt 0:00:34] (Ke3) } 86...Rc7
{ [%eval 79,19] [%emt 0:00:56] (Kd3) } 87.Ke2
{ [%eval -6,17] [%emt 0: 00:34] (Rf4) } 87...Kb3
{ [%eval 76,19] [%emt 0:00:36] (Kb3) } 88.Kd2
{ [%eval -8,16] [%emt 0:00:34] (Ke3) } 88...Rf7
{ [%eval 76,20] [%emt 0:00:59] (Rd7) } 89.Kd3
{ [%eval -5,17] [%emt 0:00:35] (Ke3) } 89...Re7
{ [%eval 76,19] [%emt 0:00:28] (Rd7) } 90.Kd2
{ [%eval -1,16] [%emt 0:00:31] (Kd2) } 90...Rd7+
{ [%eval 76,19] [%emt 0:00:34] (Rd7) } 1/2-1/2